{"text_format":"3","workbook":"xlsx","n_sheets":3,"sheets":["Sheet1","Sheet2","Sheet3"],"not_rendered":{"external_links":1},"read":"whole","date_system":"1900"}

{"sheet":"Sheet1","index":0,"n_rows":107,"n_cols":8,"rows_kept":107,"merged":[[0,0,1,7],[3,1,6,1],[3,2,6,2],[7,1,11,1],[7,2,11,2],[12,1,16,1],[12,2,16,2],[17,1,20,1],[17,2,20,2],[21,1,25,1],[21,2,25,2],[26,1,30,1],[26,2,30,2],[31,1,35,1],[31,2,35,2],[36,1,39,1],[36,2,39,2],[40,1,43,1],[40,2,43,2],[44,1,47,1],[44,2,47,2],[48,1,51,1],[48,2,51,2],[52,1,55,1],[52,2,55,2],[56,1,60,1],[56,2,60,2],[61,1,64,1],[61,2,64,2],[65,1,68,1],[65,2,68,2],[69,1,72,1],[69,2,72,2],[73,1,77,1],[73,2,77,2],[78,1,81,1],[78,2,81,2],[82,1,86,1],[82,2,86,2],[87,1,90,1],[87,2,90,2],[91,1,94,1],[91,2,94,2],[95,1,98,1],[95,2,98,2],[99,1,102,1],[99,2,102,2],[103,1,106,1],[103,2,106,2]]}
["2018届毕业论文格式审查对应表"]
[]
[null,"审核人","审核人电话","被审核人","被审核人电话","中文题目","英文题目","是否改题"]
[null,"钱宁康",17816878293,"林涵清",17816878879,"硅/银复合材料的制备及其作为锂电池负极材料研究","synthesis of Si/Ag nanocomposites as anode materials of lithium-ion battery"," "]
[{"$nulls":3},"陶鹏飞",17816862835,"纳米硅线制备及其发光","fabrication and optical property of silicon nanowires"," "]
[{"$nulls":3},"丁凡",13706511622,"高分散铜纳米线墨水的制备","Fabrication of Cu Nanowire with large ratio of length and diameter"," "]
[{"$nulls":3},"李可",17816890332,"基于掺杂硅量子点的宽光谱响应器件","Broadband devices based on doped silicon quantum dots"," "]
[null,"李俊捷",13208033786,"郭嵩蒿",17816859249,"二元金属铜钴硫化物的比电容特性","Capacitive properties of binary Cu-Co sulfides "," "]
[{"$nulls":3},"汪宁",17816890397,"碳纤维复合金属钴硫化物的制备及电化学特性","Fabrication and electrochemical properties of carbon fibers/cobalt sulfide"," "]
[{"$nulls":3},"程成拓",15057516801,"AlPO4陶瓷的冷烧结及其微波介电性能","Cold sintering and microwave dielectric properties of AlPO4 ceramics","是"]
[{"$nulls":3},"林勇",18868113783,"Sn/Sb合金负极制备及储钠性能研究","the preparation of Sn/Sb alloys and its sodium storage performance "," "]
[{"$nulls":3},"原鹏伟",17816859244,"镍铜双金属硫化物的制备及其电化学特性","Preparation and electrochemical performances of nickel-cobalt sulphides "," "]
[null,"陈少波",17816859796,"易思臣",17816859406,"等离子体活化二氧化钛纳米材料及其电化学储能性能研究","Plasma-activated titanium dioxide nanomaterials and their energy storage properties"," "]
[{"$nulls":3},"刘磊",17764519660,"仿生超滑涂层在镁合金基体的制备及性能研究","Fabrication and property of slippery liquid-infused porous surface coatings on magnesium alloys"," "]
[{"$nulls":3},"陈孟翔",13157116753,"金属镁/稀土储氢材料复合物的储氢性能研究","Investigation on the hydrogen storage properties of Mg/R-based HSMs composites"," "]
[{"$nulls":3},"谢林",18205801415,"碳布表面沉积二氧化钛纳米阵列及其光催化性能研究","Precipitations of nanostructured TiO2 arrays on carbon cloth and the photocatalytic performance"," "]
[{"$nulls":3},"陈峰",17816858779,"光响应ECM复合薄膜的制备与表征","Preparation and characterization of light responsive ECM composite films"," "]
[null,"许言君",17816859591,"杨雨晨",17816859530,"杂多酸修饰下的铂纳米颗粒催化性能研究","Boosting catalytic properties of Pt nanoparticles modified by heteropoly acid"," "]
[{"$nulls":3},"陈雨婷",17816859589,"原子层厚二硫化钼材料的相调控","Phase engineering of atomically thin molybdenum disulfide"," "]
[{"$nulls":3},"曲思佳",17816861933,"一种多肽功能化的软骨组织工程支架设计与制备","Design and preparation of peptide-functionalized scaffolds for cartilage regeneration"," "]
[{"$nulls":3},"陈思议",17816877541,"Zr4+掺杂M型钡铁氧体超薄宽频毫米波隐身材料的制备及吸波性能研究","The preparation of Zr4+ doped M-type barium ferrite and investigation of microwave absorption properties"," "]
[null,"关慰勉",18642727359,"张俊文",17816859295,"大尺寸纤维增强气凝胶的制备及应用","Preparation and application of fibre reinforced aerogel with large size"," "]
[{"$nulls":3},"林子祥",17816878953,"结构驱动二氧化钒绝缘体-金属相变的第一性原理研究","First-principle study of structure induced insulater-metal phase transition of vo2"," "]
[{"$nulls":3},"徐浩杰",17816858790,"不同粒径磁性纳米颗粒的合成及其靶向多肽的筛选","Synthesis of magnetic nanoparticles with different diameters and identification of their targeting peptides"," "]
[{"$nulls":3},"黄凯越",18258672778,"功函数可调的OLED透明导电薄膜材料的制备","Preparation of transparent conductive films with adjustable work function"," "]
[{"$nulls":3},"李翘楚",17816858792,"氧化物/PTFE-TrFE复合绝缘材料的制备及性能研究","Preparation and Properties of PTFE-TrFE/Oxide Composite Insulation Materials"," "]
[null,"谢亚丹",17816859574,"唐潇",17816878079,"钨青铜型铁电陶瓷新体系","New ferroelectric ceramics with tungsten bronze structure"," "]
[{"$nulls":3},"朱佳飞",15869120164,"二维材料电镜样品的制样和清洁","Sample Preparations and cleaning of two-dimensional mterials for transmission electron microscopy"," "]
[{"$nulls":3},"姜枫",17816859612,"原子层厚二硫化钼材料的离子束加工","Structural engineering of atomically thin molybdenum disulfide materials via ion beam","是"]
[{"$nulls":3},"柳梦婷",17816859531,"复合材料蜂窝夹芯板界面破坏行为及增韧研究","Interface failure and toughening behavior of composite honeycomb sandwich panels"," "]
[{"$nulls":3},"石悦",15867110398,"羟基氧化钨纳米片的水热合成及表征","Hydrothermal synthesis and characterization of tungsten hydroxide nanosheets"," "]
[null,"杜秋淦",18258190324,"沈延宾",17816859146,"三维石墨烯制备及其生物传感应用","Fabrication of 3D graphene for biosensor"," "]
[{"$nulls":3},"张海鑫",13738251079,"新型MOF材料制备及其在超级电容器中的应用研究","Study of synthesis of new MOFs and applications in supercapacitors"," "]
[{"$nulls":3},"陆波静",17816859817,"非晶ZnAlSnO薄膜及其在存储器件中的应用","Amorphous ZnAlSnO films and applications in memory devices"," "]
[{"$nulls":3},"王子威",17816890337,"硅基稀土掺杂ZnO薄膜电致发光器件","Electroluminescent devices with rare earth-doped ZnO films on silicon "," "]
[{"$nulls":3},"朱怡悦",13701897182,"掺杂硅量子点的表面改性及其光电性能研究","Electronic and optical properties of surface-modified doped silicon quantum dots"," "]
[null,"关玲玲",17816859602,"董万语",17816859964,"钙钛矿纳米晶与金属-有机框架材料的协同作用","Incorporation of perovskite NCs inside MOFs"," "]
[{"$nulls":3},"杜向欣",17816859535,"影响离子液体电沉积铝锰合金镀层成分及结构的因素研究 ","Study on the factors affecting the composition and structure of electrodeposited Aluminium-Manganese alloy coatings from lonic liquids","是"]
[{"$nulls":3},"唐甜",17764516220," Li1.6X0.4O（X=Li, Na, K, Mn, Ni, Co, In）锂离子正极材料的合成及其电化学性能研究","Synthesis and the electrochemical property study of Li1.6X0.4O（X=Li, Na, K, Mn, Ni, Co, In）cathode materials for lithium-ion batteries","是"]
[{"$nulls":3},"陈淑萍",17816859552,"分子调控的二氧化钛纳米片生长、微结构与光催化性能研究","Molecular-mediated growth, microstructure and photocatalytic performance of TiO2 nanosheet"," "]
[null,"王梦佳",18105765082,"龙俊卿",17816859803,"电纺丝法制备金属氧化物半导体气敏传感材料","Preparation of metal oxide semiconductor gas sensing materials by electrospinning"," "]
[{"$nulls":3},"商安宇",15605858696,"稀土掺杂钛酸钡纳米颗粒的合成及发光性能研究","Synthesis and luminescence properties of lanthanide-doped barium titanate nanocrystals"," "]
[{"$nulls":3},"李中旭",17816859887,"对位芳纶纸蜂窝夹芯板结构设计与制造工艺优化","Design and Optimization of Honeycomb-based Acoustic Linear"," "]
[{"$nulls":3},"张楠",17816859806,"复合材料蜂窝夹芯板的弯曲与屈曲特性研究","Bending and Buckling Behaviors of Composite Honeycomb Sandwich Panels"," "]
[null,"陈嘉璐",17816859553,"魏曙光",17816878796,"磁性纤维对复合材料预置缺陷的探测","Preset Defects Detection of Composite Structures using Magnetic Fibres"," "]
[{"$nulls":3},"钱凯臣",17816858797,"金属-有机骨架衍生硒化钴-碳复合材料及其电催化性能研究","MOF-derived cobalt selenide-carbon composites for electrochemical catalysis"," "]
[{"$nulls":3},"胡洋",17816861594,"Mn含量对Al-Mn合金镀层性能的影响","Effect of Mn content on properties of Al-Mn alloy coatings"," "]
[{"$nulls":3},"宫桐",17816861002,"深冷大载荷冲击对hcp金属材料组织与性能的影响","The evolution of microstructures and properties of hcp metal materials during high-load impacting at cryogenic temperature","是"]
[null,"李培培",17816859586,"崔永亮",17816859980,"锂硫电池新型生物碳正极材料的制备及其性能研究","Biomass-derived carbon/sulfur cathode for lithium-sulfur batteries with enhanced performance"," "]
[{"$nulls":3},"李诚",17816858795,"核壳结构镁基储氢材的料制备与性能","Preparation properties and hydrogen storage properties of Mg with core-shell structures"," "]
[{"$nulls":3},"祝朗",17816858796,"Ce/Sm/Cr 掺杂的铌酸钛纳米材料制备及其储锂性能研究","Synthesis of Ce/Sm/Cr doped titanium niobium oxide nanomaterials and their lithium ion storage properties"," "]
[{"$nulls":3},"马啸",17816858803,"霉菌纳米碳的控制生长和催化性能研究","Controllable synthesis of mold nanocarbon and electrocatalytic performance"," "]
[null,"梁容",17816859611,"李爱军",17816872643,"垂直石墨烯支架阵列的构建及其电催化应用","Construction of branched vertical graphene arrays and their applications in electrocatalysis"," "]
[{"$nulls":3},"刘涛",17816859780,"纳米氧化钛的光催化性能研究","On photocatalytic properties of nano-titanium dioxide "," "]
[{"$nulls":3},"刘苏宇",17816858802,"纳米Ni-Ecoflex电磁屏蔽材料的制备及其吸波性能的研究","The preparation of Ni-Ecoflex flexible electromagnetic interference shielding materials and the study of magnetic wave absorbing property"," "]
[{"$nulls":3},"赵昕",17816890060,"太阳能电池用准二维钙钛矿的制备与量子效应研究","Synthesis and quantum confinement effects of quasi-2D layered perovskite nanocrystals"," "]
[null,"吴程伟",17816872042,"杨溪亭",15121986702,"超薄非晶InGaZnO薄膜性能及其应用研究","Study of properties and applications of ultrathin amorphous InGaZnO films"," "]
[{"$nulls":3},"龙尤",17816859291,"BPO4陶瓷的冷烧结及其微波介电性能","Cold sintering and microwave dielectric properties of BPO4 ceramics","是"]
[{"$nulls":3},"罗炜坤",17816859152,"Sr2TiO4陶瓷粉末的湿化学法制备","Synthesis of Sr2TiO4 ceramic powders by wet chemical method"," "]
[{"$nulls":3},"薛凯铭",17816859702,"层状双金属氢氧化物的缺陷调控及其电化学储能性能研究","Study of the electrochemical energy storage property of defects controlled layered double hydroxide materials"," "]
[{"$nulls":3},"张猛",17816859290,"碳纳米复合材料的界面对于高频介电频散特性的影响","Effect of interfaces on the high-frequency dielectric dispersion in carbon nanocomposites"," "]
[null,"蔡丹",18780723279,"唐原浩",17816859801,"普鲁士蓝系列物衍生功能纳米结构材料及其电化学性能研究","Prussian blue analogues-derived nanostructured functional materials and the study of their electrochemical properties"," "]
[{"$nulls":3},"夏雨",15700157705,"硫化钴/多孔碳纳米纤维的制备及其电催化性能研究","Synthesis and electrocatalytic property of porous cobalt sulfide/carbon composite nanofibers"," "]
[{"$nulls":3},"王杰",17816878237,"高比能量锂硫电池硫/过渡金属氮化物/碳正极材料的制备及其性能研究","Preparation and Properties Investigations of Sulfur/ Transition Metal Nitride/Carbon Composite Cathode Material for High Specific Energy Lithium-sulfur Batteries"," "]
[{"$nulls":3},"潘以宇",17816858966,"空气电弧烧蚀试验系统的构建","Construction of arc corrosion test system"," "]
[null,"刘春丽",17816860457,"陈勇杰",17816856369,"凝胶聚合物电解质的制备及其锂硫电池性能研究","Synthesis of gel polymer electrolyte and study of performance of Li-S batteries"," "]
[{"$nulls":3},"曹海文",15658058310,"FeNi@MoSe2纳米球的制备、表征及电磁性能研究","Fabrication, characterization and electromagnetic properties of FeNi@MoSe2 nanospheres","是"]
[{"$nulls":3},"李炊健",17816871980,"纳米分级结构TiO2/ZnO制备及其气敏特性研究","Synthesis of hierarchical nanostructured TiO2/ZnO for gas sensing","是"]
[{"$nulls":3},"黄飞龙",15267329978,"新型微纳结构金属氧化物的可控制备及其电化学储钠性能研究","Controllable preparation and electrochemical sodium storage properties of Novel micro-nano structure metal oxide"," "]
[null,"张琳",17816872119,"陈宇麒",17816859587,"高储能密度电介质陶瓷新体系","New dielectric ceramics for high energy density capacitors"," "]
[{"$nulls":3},"代雨",17816859615," Li2O0.9X0.1（X=O，B，N，P ，F,  Br, I）锂离子正极材料的合成及其电化学性能研究","Synthesis and the electrochemical property study of Li2O0.9X0.1（X=O，B，N，P ，F,  Br, I）cathode materials for lithium-ion batteries","是"]
[{"$nulls":3},"谢宇玺",13735862463,"PCL/Gelatin/Au NR复合药物传输纤维的体外生物学评价","An in-vitro study of PCL/Gelatin/Au NR composite drug delivery platform"," "]
[{"$nulls":3},"程豪",17816859986,"3D石墨烯结构催化剂增强LiBH4配位氢化物的储氢性能研究","Hydrogen storage properties of LiBH4 complex hydride system catalyzed by 3D graphene structure catalyst"," "]
[null,"张铃超",17816859114,"陈湛航",17816862859,"钠离子电池硬碳负极的制备和性能","Preparation and properties of hard carbon for Na-ion battery anodes"," "]
[{"$nulls":3},"张诗韵",17816859287,"从低品质硅源制备锂离子电池硅基负极材料","Preparation of Si-based anode materials for Li-ion batteries from low-quality silicon source  "," "]
[{"$nulls":3},"陈凯峰",17816878262,"  基于不同形状微突起压阻传感器的  COMSOL多物理场结构设计及优化","The design and optimization of ultra small size piezoresistive sensor"," "]
[{"$nulls":3},"王奇玄",17816878102,"多孔过渡金属氧化物的制备及应用","Preparation and application of macroporous transition metal oxides"," "]
[{"$nulls":3},"晏汝良",15116271562,"上转换纳米晶及其温度探测","Upconversion nanocrystals for temperature sensing"," "]
[null,"王宣程",17816859127,"张艺翔",17816859422,"面向电子玻璃应用的兼具防炫目、抗指纹的多功能涂层的溶胶凝胶制备","Sol-gel preparation of an anti-glared and anti-fingerprint coating for electric glass"," "]
[{"$nulls":3},"王永义",17816859807,"硼酸盐玻璃中类分子态银团簇光谱学特性研究与模拟计算","Experimental and simulation on spectroscopic properties of molecule like silver clusters in borate glass"," "]
[{"$nulls":3},"张畅滕",17816859104,"Bi2WO6光催化材料改性及性能研究","Modification and properties of Bi2WO6 photocatalytic materials"," "]
[{"$nulls":3},"曾安平",17816858965,"多级结构WO3的制备及其光催化性能","Synthesis of hierarchical structure WO3 and its photocatalytic properties"," "]
[null,"刘锋",17816859134,"李建朴",18867110580,"磷化镍纳米阵列的可控制备及其电化学储能性能研究","Study of the electrochemical energy storage property of Nickel phosphide nano arrays"," "]
[{"$nulls":3},"沈榕",17816859408,"SnO2纳米结构紫外探测器研制","Fabrication of UV detector based on SnO2 nanostructures"," "]
[{"$nulls":3},"张涛",17816859124,"PLD方法生长Ga2O3薄膜","Research on Ga2O3 films grown by pulsed laser deposition "," "]
[{"$nulls":3},"黄佳新",15700122326,"高分子修饰的MOFs膜的制备及性能初探","Polymer functionalized MOFs thin films and their properties","是"]
[{"$nulls":3},"徐圣晟",18258277790,"表面等离激元辅助硅量子点能量传递","Plasmon-enhanced energy transfer between silicon quantum dots "," "]
[null,"李艾燃",13735446069,"李丛昊",17816859115,"一种以金属框架材料为前体可用于电催化产氢的新颖纳米复合材料的制备研究","Exploration of A Novel Nanocompostion Derived From A Metal-Organic Framework For Electrochemical Hydrogen Evolution"," "]
[{"$nulls":3},"卢浩天",17764519829,"双超掺杂石墨烯的磁性能与吸波特性","Mangetic and microwave properties of dual super-doped graphene "," "]
[{"$nulls":3},"周志远",17816862492,"热注射法制备金属硫化物/硒化物纳米晶及其电化学储钠机理研究","Synthesis of metal sulfides/selenides nanocrystals and the mechanisms study of their application for electrochemical sodium storage"," "]
[{"$nulls":3},"李铭玺",17816859113,"低温等离子体功能化纳米结构金属氧化物/硫化物的电化学性能研究","The study of the electrochemical properties of low-temperature functionalized nanostructured metal oxides/sulfides"," "]
[null,"陆子介",17816877245,"杨子旭",17816859106,"改性TiO2催化增强氢化镁储氢性能的研究","Study on hydrogen storage properties of magnesium hydride enhanced by modified TiO2 catalyst"," "]
[{"$nulls":3},"李唐骥",17816859109,"镁合金表面聚吡咯涂层的制备与耐蚀性能研究","Fabrication and corrosion resistance of polypyrrole coatings on magnesium alloys"," "]
[{"$nulls":3},"沈达",17816859407,"纳米金属硼化物的溶液分散性能研究","Dispersion properties of nanosized metal borides"," "]
[{"$nulls":3},"尤健",17816862872,"超细晶Q235碳素结构钢和5083铝合金材料的制备与力学性能研究","Preparation and mechanical properties of ultra-fine grain Q235 carbon steel and 5083 alloy bulks","是"]
[null,"竺思佳",17816859560,"唐之初",17816859116,"锂空气电池催化电极及器件设计","Design of catalytic electrodes and devices for Li-air batteries"," "]
[{"$nulls":3},"俞钧耀",17816878026,"装配式建筑套筒灌浆料","Sleeve grouting material used in assembly building construction"," "]
[{"$nulls":3},"张威迪",15858442059,"医用缝线表面药物负载涂层的制备与表征","Preparation and characterization of drug-loaded coatings on medical suture"," "]
[{"$nulls":3},"董泽熹",15386430597,"激光照明用玻璃陶瓷","Glass ceramics for laser lighting"," "]
[null,"王紫旌",17816859557,"蒋朋麟",17816859121,"钠系水合玻璃快离子导体的制备与性能表征","Preparation And Performance Characterization of Sodium Hydrate Glass Fast Ionic Conduction"," "]
[{"$nulls":3},"陈宇",17816859246,"CdS纳米结构的水热合成及其光催化性能研究","Hydrothermal synthesis and photocatalytic properties of CdS nanostructures"," "]
[{"$nulls":3},"张春雷",17816859125,"石墨烯/氧化锡/导电聚合物三元复合材料的制备及电化学性能研究","Preparation and electrochemical properties of Graphene/SnO2/conducting polymer ternary composites"," "]
[{"$nulls":3},"吴掌",17816890507,"复杂乳液滴中形成相变薄膜","Phase Inversion Membrane Formation Within Complex Emulsion Drops"," "]
[null,"王彩云",17816859546,"罗钰",17816872791,"碳布表面活化及其作为超级电容器电极性能研究","Activation of carbon cloth for applications as electrodes in supercapacitors"," "]
[{"$nulls":3},"党月桐",17816862889,"渗流型超弹导电复合材料的制备及其电学性能与机械性能的研究"," The preparation of Percolative hyperelastic conductive composite and the study of electrical and mechanical property"," "]
[{"$nulls":3},"罗曼",17816872726,"pH值对水热合成TiO2纳米颗粒相组成的影响","Effect of pH on the phase formation of the hydrothermally synthesized TiO2 nanoparticles"," "]
[{"$nulls":3},"曾薇",17816859554,"金属有机框架材料在协同肿瘤光动力及光热治疗中的应用","Application of metal organic framework (MOFs) materials in photodynamic therapy and photothermal therapy for tumors"," "]

{"sheet":"Sheet2","index":1,"n_rows":0,"n_cols":0,"rows_kept":0}

{"sheet":"Sheet3","index":2,"n_rows":133,"n_cols":15,"rows_kept":133,"merged":[[0,0,1,13]]}
["2018届毕业生毕业设计名单（半23， 材9， 电3， 复16， 金40， 无36）"]
[]
["序号","学号","姓名","是否保研","排名","绩点","电话","班级","性别","毕业论文(设计)中文题目","毕业论文(设计)英文题目","工号","指导教师姓名","研究所"]
[1,"3140102866","竺思佳","是",{"$f":"VLOOKUP(C4,[1]Sheet3!A:B,2,0)","v":27},4.16,17816859560,"材料1404","女","阵列化硅基锂电池负极材料的制备与性能","synthesis of Si-based array anode materials","0009736","杜宁","半导体"]
[2,"3140103573","林涵清","考研",{"$f":"VLOOKUP(C5,[1]Sheet3!A:B,2,0)","v":54},3.89,17816878879,"材料1401","男","硅/银复合材料的制备及其作为锂电池负极材料研究","synthesis of Si/Ag nanocomposites as anode materials of lithium-ion battery","0009736","杜宁","半导体"]
[3,"3140101003","沈延宾","考研",{"$f":"VLOOKUP(C6,[1]Sheet3!A:B,2,0)","v":60},3.85,17816859146,"材料1402","男","三维石墨烯制备及其生物传感应用","Fabrication of 3D graphene for biosensor","0000119","黄靖云","半导体"]
[4,"3140102850","张海鑫"," ",{"$f":"VLOOKUP(C7,[1]Sheet3!A:B,2,0)","v":104},3.4,13738251079,"材料1402","男","新型MOF材料制备及其在超级电容器中的应用研究","Study of synthesis of new MOFs and applications in supercapacitors","0007431","吕建国","半导体"]
[5,"3140103745","陆波静","考研",{"$f":"VLOOKUP(C8,[1]Sheet3!A:B,2,0)","v":98},3.49,17816859817,"材料1402","男","非晶ZnAlSnO薄膜及其在存储器件中的应用","Amorphous ZnAlSnO films and applications in memory devices","0007431","吕建国","半导体"]
[6,"3140102932","王子威","考研",{"$f":"VLOOKUP(C9,[1]Sheet3!A:B,2,0)","v":90},3.57,17816890337,"材料1402","男","硅基稀土掺杂ZnO薄膜电致发光器件","Electroluminescent devices with rare earth-doped ZnO films on silicon ","0098164","马向阳","半导体"]
[7,"3140104771","杜秋淦","是",{"$f":"VLOOKUP(C10,[1]Sheet3!A:B,2,0)","v":8},4.37,18258190324,"材料1402","男","共掺直拉硅单晶中的氧沉淀对位错运动的影响","Effects of oxygen precipitation on dislocation motion in co-doped Czchralski silicon","0098164","马向阳","半导体"]
[8,"3140102862","沈榕","考研",{"$f":"VLOOKUP(C11,[1]Sheet3!A:B,2,0)","v":53},3.92,17816859408,"材料1404","男","SnO2纳米结构紫外探测器研制","Fabrication of UV detector based on SnO2 nanostructures","0010764","潘新花","半导体"]
[9,"3140104004","张涛","考研",{"$f":"VLOOKUP(C12,[1]Sheet3!A:B,2,0)","v":40},4.04,17816859124,"材料1404","男","PLD方法生长Ga2O3薄膜","Research on Ga2O3 films grown by pulsed laser deposition ","0010764","潘新花","半导体"]
[10,"3140101117","黄佳新","外推",{"$f":"VLOOKUP(C13,[1]Sheet3!A:B,2,0)","v":21},4.21,15700122326,"材料1404","男","高分子修饰的MOFs膜的制备及性能初探","Polymer functionalized MOFs thin films and their properties","0009126","彭新生","半导体","题目修改"]
[11,"3140104585","李培培","是",{"$f":"VLOOKUP(C14,[1]Sheet3!A:B,2,0)","v":7},4.42,17816859586,"材料1403","女","DNA、金纳米颗粒共修饰的MOFs薄膜的制备及性能研究","DNA and Au nanoparticle co-modified MOFs thin films","0009126","彭新生","半导体"]
[12,"3140101191","陶鹏飞"," ",{"$f":"VLOOKUP(C15,[1]Sheet3!A:B,2,0)","v":105},3.38,17816862835,"材料1401","男","纳米硅线制备及其发光","fabrication and optical property of silicon nanowires","0002014","李东升","半导体"]
[13,"3140102847","丁凡"," ",{"$f":"VLOOKUP(C16,[1]Sheet3!A:B,2,0)","v":62},3.83,13706511622,"材料1401","男","高分散铜纳米线墨水的制备","Fabrication of Cu Nanowire with large ratio of length and diameter","0002014","李东升","半导体"]
[14,"3140102855","徐圣晟"," ",{"$f":"VLOOKUP(C17,[1]Sheet3!A:B,2,0)","v":81},3.63,18258277790,"材料1404","男","表面等离激元辅助硅量子点能量传递","Plasmon-enhanced energy transfer between silicon quantum dots ","0002014","李东升","半导体"]
[15,"3140101056","朱怡悦","考研",{"$f":"VLOOKUP(C18,[1]Sheet3!A:B,2,0)","v":87},3.59,13701897182,"材料1402","男","掺杂硅量子点的表面改性及其光电性能研究","Electronic and optical properties of surface-modified doped silicon quantum dots","0008378","皮孝东","半导体"]
[16,"3140104225","李可","外推",{"$f":"VLOOKUP(C19,[1]Sheet3!A:B,2,0)","v":38},4.06,17816890332,"材料1401","男","基于掺杂硅量子点的宽光谱响应器件","Broadband devices based on doped silicon quantum dots","0008378","皮孝东","半导体"]
[17,"3140104351","王紫旌","是",{"$f":"VLOOKUP(C20,[1]Sheet3!A:B,2,0)","v":24},4.18,17816859557,"材料1404","女","超掺杂晶体硅探测器研究","Detector based on super-doping crystalline silicon ","0092004","杨德仁","半导体"]
[18,"3140103762","杨溪亭"," ",{"$f":"VLOOKUP(C21,[1]Sheet3!A:B,2,0)","v":122},2.48,15121986702,"材料1403","男","超薄非晶InGaZnO薄膜性能及其应用研究","Study of properties and applications of ultrathin amorphous InGaZnO films","0088010","叶志镇","半导体"]
[19,"3140105265","董万语"," ",{"$f":"VLOOKUP(C22,[1]Sheet3!A:B,2,0)","v":115},3.13,17816859964,"材料1402","男","钙钛矿纳米晶与金属-有机框架材料的协同作用","Incorporation of perovskite NCs inside MOFs","0088010","叶志镇","半导体"]
[20,"3140102831","钱宁康","是",{"$f":"VLOOKUP(C23,[1]Sheet3!A:B,2,0)","v":23},4.19,17816878293,"材料1401","男","Pd@Ru核壳纳米晶的形貌结构调控及析氢性能研究","Synthesis of Pd@Ru core-shell nanocrystals with controlled shape and structure as highly active and durable catalyts towards hydrogen evolution reaction","0004181","张辉","半导体"]
[21,"3140104160","李俊捷","是",{"$f":"VLOOKUP(C24,[1]Sheet3!A:B,2,0)","v":50},3.97,13208033786,"材料1401","男","PdPb金属间纳米颗粒的可控制备及氧还原性能研究","Synthesis of PdPb intermetallic nanocrystals as catalysts for oxygen reduction reaction","0004181","张辉","半导体"]
[22,"3140105353","杨雨晨",{"$nulls":3},17816859530,"材料1401","nv ","杂多酸修饰下的铂纳米颗粒催化性能研究","Boosting catalytic properties of Pt nanoparticles modified by heteropoly acid",null,"张辉","半导体"]
[23,"3140103694","龙俊卿"," ",{"$f":"VLOOKUP(C26,[1]Sheet3!A:B,2,0)","v":51},3.96,17816859803,"材料1402","男","电纺丝法制备金属氧化物半导体气敏传感材料","Preparation of metal oxide semiconductor gas sensing materials by electrospinning","0002413","朱丽萍","半导体"]
[24,"3140103742","梁容","是",{"$f":"VLOOKUP(C27,[1]Sheet3!A:B,2,0)","v":15},4.27,17816859611,"材料1403","女","SrTiO3/BiVO4纳米结构异质结的制备及其光分解水性能研究","Preparation of SrTiO3/BiVO4 nanostructured heterojuction and their application on water splitting","0002413","朱丽萍","半导体","题目修改"]
[25,"3140104034","陈少波","是",{"$f":"VLOOKUP(C28,[1]Sheet3!A:B,2,0)","v":16},4.27,17816859796,"材料1401","男","BaTiO3-CaTiO3-BaZrO3赝三元系固溶体的结构与介电特性","Structure and dielectric characteristics of solid solutions in BaTiO3-CaTiO3-BaZrO3 pseudoternary system","0094181","陈湘明","材物所"]
[26,"3140102834","郭嵩蒿","外推",{"$f":"VLOOKUP(C29,[1]Sheet3!A:B,2,0)","v":42},4.04,17816859249,"材料1401","男","二元金属铜钴硫化物的比电容特性","Capacitive properties of binary Cu-Co sulfides ","0005133","程继鹏","材物所"]
[27,"3140105267","汪宁","外推",{"$f":"VLOOKUP(C30,[1]Sheet3!A:B,2,0)","v":20},4.23,17816890397,"材料1401","男","碳纤维复合金属钴硫化物的制备及电化学特性","Fabrication and electrochemical properties of carbon fibers/cobalt sulfide","0005133","程继鹏","材物所"]
[28,"3140102830","程成拓"," ",{"$f":"VLOOKUP(C31,[1]Sheet3!A:B,2,0)","v":120},2.78,15057516801,"材料1401","男","AlPO4陶瓷的冷烧结及其微波介电性能","Cold sintering and microwave dielectric properties of AlPO4 ceramics","0006096","李雷","材物所","题目修改"]
[29,"3140104147","龙尤","考研",{"$f":"VLOOKUP(C32,[1]Sheet3!A:B,2,0)","v":103},3.41,17816859291,"材料1403","男","BPO4陶瓷的冷烧结及其微波介电性能","Cold sintering and microwave dielectric properties of BPO4 ceramics","0006096","李雷","材物所","题目修改"]
[30,"3140104233","原鹏伟"," ",{"$f":"VLOOKUP(C33,[1]Sheet3!A:B,2,0)","v":22},4.2,17816859244,"材料1401","男","镍铜双金属硫化物的制备及其电化学特性","Preparation and electrochemical performances of nickel-cobalt sulphides ","0089120","刘芙","材物所"]
[31,"3140105181","罗炜坤","考研",{"$f":"VLOOKUP(C34,[1]Sheet3!A:B,2,0)","v":58},3.87,17816859152,"材料1403","男","Sr2TiO4陶瓷粉末的湿化学法制备","Synthesis of Sr2TiO4 ceramic powders by wet chemical method","0097058","吴淑雅","材物所"]
[32,"3140103763","唐潇"," ",{"$f":"VLOOKUP(C35,[1]Sheet3!A:B,2,0)","v":121},2.61,17816878079,"材料1402","女","钨青铜型铁电陶瓷新体系","New ferroelectric ceramics with tungsten bronze structure","0010765","朱晓莉","材物所"]
[33,"3140104354","陈宇麒","外推",{"$f":"VLOOKUP(C36,[1]Sheet3!A:B,2,0)","v":4},4.46,17816859587,"材料1403","女","高储能密度电介质陶瓷新体系","New dielectric ceramics for high energy density capacitors","0010765","朱晓莉","材物所"]
[34,"3140102933","朱佳飞"," ",{"$f":"VLOOKUP(C37,[1]Sheet3!A:B,2,0)","v":77},3.66,15869120164,"材料1402","女","二维材料电镜样品的制样和清洁","Sample Preparations and cleaning of two-dimensional mterials for transmission electron microscopy","0010142","金传洪","电镜中心"]
[35,"3140104150","陈雨婷"," ",{"$f":"VLOOKUP(C38,[1]Sheet3!A:B,2,0)","v":12},4.28,17816859589,"材料1401","女","原子层厚二硫化钼材料的相调控","Phase engineering of atomically thin molybdenum disulfide","0010142","金传洪","电镜中心"]
[36,"3140105048","姜枫"," ",{"$f":"VLOOKUP(C39,[1]Sheet3!A:B,2,0)","v":5},4.45,17816859612,"材料1402","女","原子层厚二硫化钼材料的离子束加工","Structural engineering of atomically thin molybdenum disulfide materials via ion beam","0010142","金传洪","电镜中心","题目修改"]
[37,"3140102865","商安宇"," ",{"$f":"VLOOKUP(C40,[1]Sheet3!A:B,2,0)","v":37},4.06,15605858696,"材料1402","男","稀土掺杂钛酸钡纳米颗粒的合成及发光性能研究","Synthesis and luminescence properties of lanthanide-doped barium titanate nanocrystals","0016002","邓人仁","复材所"]
[38,"3140105695","薛凯铭"," ",{"$f":"VLOOKUP(C41,[1]Sheet3!A:B,2,0)","v":25},4.17,17816859702,"材料1403","男","层状双金属氢氧化物的缺陷调控及其电化学储能性能研究","Study of the electrochemical energy storage property of defects controlled layered double hydroxide materials","0094047","洪樟连","复材所"]
[39,"3140104357","李丛昊"," ",{"$f":"VLOOKUP(C42,[1]Sheet3!A:B,2,0)","v":117},3.07,17816859115,"材料1404","男","一种以金属框架材料为前体可用于电催化产氢的新颖纳米复合材料的制备研究","Exploration of A Novel Nanocompostion Derived From A Metal-Organic Framework For Electrochemical Hydrogen Evolution","0012075","刘毅","复材所"]
[40,"3140102898","柳梦婷"," ",{"$f":"VLOOKUP(C43,[1]Sheet3!A:B,2,0)","v":46},4.02,17816859531,"材料1402","女","复合材料蜂窝夹芯板界面破坏行为及增韧研究","Interface failure and toughening behavior of composite honeycomb sandwich panels","0014010","彭华新","复材所"]
[41,"3140104356","李中旭","考研",{"$f":"VLOOKUP(C44,[1]Sheet3!A:B,2,0)","v":92},3.56,17816859887,"材料1402","男","对位芳纶纸蜂窝夹芯板结构设计与制造工艺优化","Design and Optimization of Honeycomb-based Acoustic Linear","0014010","彭华新","复材所"]
[42,"3140104583","张楠","考研",{"$f":"VLOOKUP(C45,[1]Sheet3!A:B,2,0)","v":26},4.16,17816859806,"材料1402","男","复合材料蜂窝夹芯板的弯曲与屈曲特性研究","Bending and Buckling Behaviors of Composite Honeycomb Sandwich Panels","0014010","彭华新","复材所"]
[43,"3140104230","张猛","考研",{"$f":"VLOOKUP(C46,[1]Sheet3!A:B,2,0)","v":76},3.68,17816859290,"材料1403","男","碳纳米复合材料的界面对于高频介电频散特性的影响","Effect of interfaces on the high-frequency dielectric dispersion in carbon nanocomposites","0015019","秦发祥","复材所"]
[44,"3140105218","魏曙光"," ",{"$f":"VLOOKUP(C47,[1]Sheet3!A:B,2,0)","v":57},3.88,17816878796,"材料1402","男","磁性纤维对复合材料预置缺陷的探测","Preset Defects Detection of Composite Structures using Magnetic Fibres","0015019","秦发祥","复材所"]
[45,"3140105350","卢浩天","考研",{"$f":"VLOOKUP(C48,[1]Sheet3!A:B,2,0)","v":75},3.7,17764519829,"材料1404","男","双超掺杂石墨烯的磁性能与吸波特性","Mangetic and microwave properties of dual super-doped graphene ","0015019","秦发祥","复材所"]
[46,"3140102839","钱凯臣"," ",{"$f":"VLOOKUP(C49,[1]Sheet3!A:B,2,0)","v":78},3.66,17816858797,"材料1402","男","金属-有机骨架衍生硒化钴-碳复合材料及其电催化性能研究","MOF-derived cobalt selenide-carbon composites for electrochemical catalysis","0017003","吴浩斌","复材所"]
[47,"3140103798","易思臣"," ",{"$f":"VLOOKUP(C50,[1]Sheet3!A:B,2,0)","v":70},3.73,17816859406,"材料1401","男","等离子体活化二氧化钛纳米材料及其电化学储能性能研究","Plasma-activated titanium dioxide nanomaterials and their energy storage properties","0017003","吴浩斌","复材所"]
[48,"3140101057","唐原浩","考研",{"$f":"VLOOKUP(C51,[1]Sheet3!A:B,2,0)","v":68},3.76,17816859801,"材料1403","男","普鲁士蓝系列物衍生功能纳米结构材料及其电化学性能研究","Prussian blue analogues-derived nanostructured functional materials and the study of their electrochemical properties","0016101","遇鑫遥","复材所"]
[49,"3140103852","周志远","考研",{"$f":"VLOOKUP(C52,[1]Sheet3!A:B,2,0)","v":97},3.51,17816862492,"材料1404","男","热注射法制备金属硫化物/硒化物纳米晶及其电化学储钠机理研究","Synthesis of metal sulfides/selenides nanocrystals and the mechanisms study of their application for electrochemical sodium storage","0016101","遇鑫遥","复材所"]
[50,"3140104582","李铭玺"," ",{"$f":"VLOOKUP(C53,[1]Sheet3!A:B,2,0)","v":113},3.18,17816859113,"材料1404","男","低温等离子体功能化纳米结构金属氧化物/硫化物的电化学性能研究","The study of the electrochemical properties of low-temperature functionalized nanostructured metal oxides/sulfides","0016101","遇鑫遥","复材所"]
[51,"3140102853","夏雨"," ",{"$f":"VLOOKUP(C54,[1]Sheet3!A:B,2,0)","v":108},3.27,15700157705,"材料1403","男","硫化钴/多孔碳纳米纤维的制备及其电催化性能研究","Synthesis and electrocatalytic property of porous cobalt sulfide/carbon composite nanofibers","0012154","支明佳","复材所"]
[52,"3130104422","李建朴"," ",null,null,18867110580,"材料1303","男","磷化镍纳米阵列的可控制备及其电化学储能性能研究","Study of the electrochemical energy storage property of Nickel phosphide nano arrays","0012154","支明佳","复材所"]
[53,"3140102931","杨子旭"," ",{"$f":"VLOOKUP(C56,[1]Sheet3!A:B,2,0)","v":125},2.05,17816859106,"材料1404","男","改性TiO2催化增强氢化镁储氢性能的研究","Study on hydrogen storage properties of magnesium hydride enhanced by modified TiO2 catalyst","0092044","陈立新","金属所"]
[54,"3140104912","王宣程","是",{"$f":"VLOOKUP(C57,[1]Sheet3!A:B,2,0)","v":31},4.13,17816859127,"材料1404","男","TMTiO3 (TM = Co, Ni)催化增强2LiBH4-MgH2复合体系的微观结构和储氢性能","Microstructure and hydrogen storage properties of 2LiBH4-MgH2 system enhanced by TMTiO3 (TM = Co, Ni) catalysts","0092044","陈立新","金属所"]
[55,"3140103422","王杰","考研",{"$f":"VLOOKUP(C58,[1]Sheet3!A:B,2,0)","v":82},3.62,17816878237,"材料1403","男","高比能量锂硫电池硫/过渡金属氮化物/碳正极材料的制备及其性能研究","Preparation and Properties Investigations of Sulfur/ Transition Metal Nitride/Carbon Composite Cathode Material for High Specific Energy Lithium-sulfur Batteries","0093056","高明霞","金属所"]
[56,"3140103697","李唐骥"," ",{"$f":"VLOOKUP(C59,[1]Sheet3!A:B,2,0)","v":106},3.38,17816859109,"材料1404","男","镁合金表面聚吡咯涂层的制备与耐蚀性能研究","Fabrication and corrosion resistance of polypyrrole coatings on magnesium alloys","0009054","谷长栋","金属所"]
[57,"3140105180","刘磊"," ",{"$f":"VLOOKUP(C60,[1]Sheet3!A:B,2,0)","v":91},3.57,17764519660,"材料1401","男","仿生超滑涂层在镁合金基体的制备及性能研究","Fabrication and property of slippery liquid-infused porous surface coatings on magnesium alloys","0009054","谷长栋","金属所"]
[58,"3140104154","王彩云","是",{"$f":"VLOOKUP(C61,[1]Sheet3!A:B,2,0)","v":13},4.27,17816859546,"材料1404","女","LLZO基电解质制备及固态锂离子电池性能研究","the preparation of Li7La3Zr2O12 based Li-ion electrolytes and its battery applications","0010032","姜银珠","金属所"]
[59,"3130103820","林勇"," ",null,null,18868113783,"材料1302","男","Sn/Sb合金负极制备及储钠性能研究","the preparation of Sn/Sb alloys and its sodium storage performance ","0010032","姜银珠","金属所"]
[60,"3140101206","胡洋"," ",{"$f":"VLOOKUP(C63,[1]Sheet3!A:B,2,0)","v":63},3.82,17816861594,"材料1402","男","Mn含量对Al-Mn合金镀层性能的影响","Effect of Mn content on properties of Al-Mn alloy coatings","0088261","凌国平","金属所"]
[61,"3140101247","杜向欣"," ",{"$f":"VLOOKUP(C64,[1]Sheet3!A:B,2,0)","v":109},3.27,17816859535,"材料1402","女","影响离子液体电沉积铝锰合金镀层成分及结构的因素研究 ","Study on the factors affecting the composition and structure of electrodeposited Aluminium-Manganese alloy coatings from lonic liquids","0088261","凌国平","金属所","题目修改"]
[62,"3140105043","沈达","考研",{"$f":"VLOOKUP(C65,[1]Sheet3!A:B,2,0)","v":85},3.6,17816859407,"材料1404","男","纳米金属硼化物的溶液分散性能研究","Dispersion properties of nanosized metal borides","0006108","刘宾虹","金属所"]
[63,"3140102891","潘以宇"," ",{"$f":"VLOOKUP(C66,[1]Sheet3!A:B,2,0)","v":89},3.57,17816858966,"材料1403","男","空气电弧烧蚀试验系统的构建","Construction of arc corrosion test system","0010758","刘嘉斌","金属所"]
[64,"3140104908","关慰勉","是",{"$f":"VLOOKUP(C67,[1]Sheet3!A:B,2,0)","v":1},4.48,18642727359,"材料1401","男","高熵合金超细纳米探针的制备","Preparation of ultra-fine tipe of high entropy alloys","0010758","刘嘉斌","金属所"]
[65,"3140102856","张铃超","是",{"$f":"VLOOKUP(C68,[1]Sheet3!A:B,2,0)","v":36},4.06,17816859114,"材料1404","男","B掺杂对Si基负极材料电化学性能的影响","Effect of B doping on electrochemical properties of Si-based anode materials","0007220","刘永锋","金属所"]
[66,"3140103761","尤健","考研",{"$f":"VLOOKUP(C69,[1]Sheet3!A:B,2,0)","v":93},3.55,17816862872,"材料1404","男","超细晶Q235碳素结构钢和5083铝合金材料的制备与力学性能研究","Preparation and mechanical properties of ultra-fine grain Q235 carbon steel and 5083 alloy bulks","0095092","罗伟","金属所","题目修改"]
[67,"3140103849","宫桐"," ",{"$f":"VLOOKUP(C70,[1]Sheet3!A:B,2,0)","v":86},3.59,17816861002,"材料1402","男","深冷大载荷冲击对hcp金属材料组织与性能的影响","The evolution of microstructures and properties of hcp metal materials during high-load impacting at cryogenic temperature","0095092","罗伟","金属所","题目修改"]
[68,"3140103921","代雨"," ",{"$f":"VLOOKUP(C71,[1]Sheet3!A:B,2,0)","v":101},3.47,17816859615,"材料1403","女"," Li2O0.9X0.1（X=O，B，N，P ，F,  Br, I）锂离子正极材料的合成及其电化学性能研究","Synthesis and the electrochemical property study of Li2O0.9X0.1（X=O，B，N，P ，F,  Br, I）cathode materials for lithium-ion batteries","0096110","潘洪革","金属所","题目修改"]
[69,"3140105607","唐甜"," ",{"$f":"VLOOKUP(C72,[1]Sheet3!A:B,2,0)","v":45},4.02,17764516220,"材料1402","女"," Li1.6X0.4O（X=Li, Na, K, Mn, Ni, Co, In）锂离子正极材料的合成及其电化学性能研究","Synthesis and the electrochemical property study of Li1.6X0.4O（X=Li, Na, K, Mn, Ni, Co, In）cathode materials for lithium-ion batteries","0096110","潘洪革","金属所","题目修改"]
[70,"3140101618","吴掌"," ",{"$f":"VLOOKUP(C73,[1]Sheet3!A:B,2,0)","v":9},4.32,17816890507,"材料1404","女","复杂乳液滴中形成相变薄膜","Phase Inversion Membrane Formation Within Complex Emulsion Drops","0094046","涂江平","金属所"]
[71,"3140104387","崔永亮","考研",{"$f":"VLOOKUP(C74,[1]Sheet3!A:B,2,0)","v":88},3.58,17816859980,"材料1402","男","锂硫电池新型生物碳正极材料的制备及其性能研究","Biomass-derived carbon/sulfur cathode for lithium-sulfur batteries with enhanced performance","0094046","涂江平","金属所"]
[72,"3140104474","许言君","是",{"$f":"VLOOKUP(C75,[1]Sheet3!A:B,2,0)","v":6},4.42,17816859591,"材料1401","女","聚合物基固态电解质的制备及电化学性能研究","Preparation of polymer electrolyte for solid-state batteries and their electrochemical perforamnces","0094046","涂江平","金属所"]
[73,"3140100028","陈孟翔"," ",{"$f":"VLOOKUP(C76,[1]Sheet3!A:B,2,0)","v":123},2.33,13157116753,"材料1401","男","金属镁/稀土储氢材料复合物的储氢性能研究","Investigation on the hydrogen storage properties of Mg/R-based HSMs composites","0093052","王新华","金属所"]
[74,"3140102835","李诚"," ",{"$f":"VLOOKUP(C77,[1]Sheet3!A:B,2,0)","v":84},3.6,17816858795,"材料1402","男","核壳结构镁基储氢材的料制备与性能","Preparation properties and hydrogen storage properties of Mg with core-shell structures","0093052","王新华","金属所"]
[75,"3140101715","陈勇杰","考研",{"$f":"VLOOKUP(C78,[1]Sheet3!A:B,2,0)","v":33},4.1,17816856369,"材料1403","男","凝胶聚合物电解质的制备及其锂硫电池性能研究","Synthesis of gel polymer electrolyte and study of performance of Li-S batteries","0006134","王秀丽","金属所"]
[76,"3140103618","蔡丹","是",{"$f":"VLOOKUP(C79,[1]Sheet3!A:B,2,0)","v":19},4.24,18780723279,"材料1403","女","原位合成碳包覆硫化锂正极材料及电化学性能研究","Synthesis and electrochemical performance of carbon coated Li2S composite as cathode material of lithium-ion batteries","0006134","王秀丽","金属所"]
[77,"3140103744","曹海文","考研",{"$f":"VLOOKUP(C80,[1]Sheet3!A:B,2,0)","v":111},3.21,15658058310,"材料1403","男","FeNi@MoSe2纳米球的制备、表征及电磁性能研究","Fabrication, characterization and electromagnetic properties of FeNi@MoSe2 nanospheres","0013174","吴琛","金属所","题目修改"]
[78,"3140105717","谢亚丹","是",{"$f":"VLOOKUP(C81,[1]Sheet3!A:B,2,0)","v":14},4.27,17816859574,"材料1401","女","基于MOF的复合材料制备及电磁性能研究","Fabrication and electromagnetic properties of composites based on MOF","0013174","吴琛","金属所","题目修改"]
[79,"3140102832","谢林"," ",{"$f":"VLOOKUP(C82,[1]Sheet3!A:B,2,0)","v":100},3.47,18205801415,"材料1401","男","碳布表面沉积二氧化钛纳米阵列及其光催化性能研究","Precipitations of nanostructured TiO2 arrays on carbon cloth and the photocatalytic performance","0099069","吴进明","金属所"]
[80,"3140103929","李炊健"," ",{"$f":"VLOOKUP(C83,[1]Sheet3!A:B,2,0)","v":116},3.1,17816871980,"材料1403","男","纳米分级结构TiO2/ZnO制备及其气敏特性研究","Synthesis of hierarchical nanostructured TiO2/ZnO for gas sensing","0099069","吴进明","金属所","题目修改"]
[81,"3140105568","罗钰"," ",{"$f":"VLOOKUP(C84,[1]Sheet3!A:B,2,0)","v":102},3.41,17816872791,"材料1404","女","碳布表面活化及其作为超级电容器电极性能研究","Activation of carbon cloth for applications as electrodes in supercapacitors","0099069","吴进明","金属所"]
[82,"3140101001","祝朗","考研",{"$f":"VLOOKUP(C85,[1]Sheet3!A:B,2,0)","v":95},3.52,17816858796,"材料1402","男","Ce/Sm/Cr 掺杂的铌酸钛纳米材料制备及其储锂性能研究","Synthesis of Ce/Sm/Cr doped titanium niobium oxide nanomaterials and their lithium ion storage properties","0010767","夏新辉","金属所"]
[83,"3140104235","马啸"," ",{"$f":"VLOOKUP(C86,[1]Sheet3!A:B,2,0)","v":59},3.85,17816858803,"材料1402","男","霉菌纳米碳的控制生长和催化性能研究","Controllable synthesis of mold nanocarbon and electrocatalytic performance","0010767","夏新辉","金属所"]
[84,"3140104772","李爱军"," ",{"$f":"VLOOKUP(C87,[1]Sheet3!A:B,2,0)","v":41},4.04,17816872643,"材料1402","男","垂直石墨烯支架阵列的构建及其电催化应用","Construction of branched vertical graphene arrays and their applications in electrocatalysis","0010767","夏新辉","金属所"]
[85,"3140102870","黄飞龙","考研",{"$f":"VLOOKUP(C88,[1]Sheet3!A:B,2,0)","v":96},3.52,15267329978,"材料1403","男","新型微纳结构金属氧化物的可控制备及其电化学储钠性能研究","Controllable preparation and electrochemical sodium storage properties of Novel micro-nano structure metal oxide","0008314","肖学章","金属所"]
[86,"3140105716","程豪","考研",{"$f":"VLOOKUP(C89,[1]Sheet3!A:B,2,0)","v":67},3.78,17816859986,"材料1403","男","3D石墨烯结构催化剂增强LiBH4配位氢化物的储氢性能研究","Hydrogen storage properties of LiBH4 complex hydride system catalyzed by 3D graphene structure catalyst","0008314","肖学章","金属所"]
[87,"3140104478","陈湛航","考研",{"$f":"VLOOKUP(C90,[1]Sheet3!A:B,2,0)","v":69},3.75,17816862859,"材料1403","男","钠离子电池硬碳负极的制备和性能","Preparation and properties of hard carbon for Na-ion battery anodes","0009055","谢健","金属所"]
[88,"3140104777","唐之初"," ",{"$f":"VLOOKUP(C91,[1]Sheet3!A:B,2,0)","v":39},4.05,17816859116,"材料1404","男","锂空气电池催化电极及器件设计","Design of catalytic electrodes and devices for Li-air batteries","0009055","谢健","金属所"]
[89,"3140104802","刘春丽","是",{"$f":"VLOOKUP(C92,[1]Sheet3!A:B,2,0)","v":72},3.72,17816860457,"材料1403","女","用于钠离子电池正极的普鲁士基材料的制备和电化学性能","Preparation and electrochemical performance of Prussian blue-based materials for Na-ion battery cathode  ","0009055","谢健","金属所"]
[90,"3140101114","刘锋","是",{"$f":"VLOOKUP(C93,[1]Sheet3!A:B,2,0)","v":3},4.48,17816859134,"材料1404","男","过量碲对n型碲化铋基热电材料性能的影响","Effects of excess Te on the properties of bismuth telluride based thermoelectric materials","0085188","赵新兵","金属所"]
[91,"3140105391","张诗韵","考研",{"$f":"VLOOKUP(C94,[1]Sheet3!A:B,2,0)","v":30},4.13,17816859287,"材料1403","男","从低品质硅源制备锂离子电池硅基负极材料","Preparation of Si-based anode materials for Li-ion batteries from low-quality silicon source  ","0085188","赵新兵","金属所"]
[92,"3140103922","李艾燃","是",{"$f":"VLOOKUP(C95,[1]Sheet3!A:B,2,0)","v":34},4.09,13735446069,"材料1404","男","MOFs基热电材料的结构与性能","Structure and Properties of MOFs based thermoelectric materials","0004152","朱铁军","金属所"]
[93,"3140102874","俞钧耀"," ",{"$f":"VLOOKUP(C96,[1]Sheet3!A:B,2,0)","v":112},3.2,17816878026,"材料1404","男","装配式建筑套筒灌浆料","Sleeve grouting material used in assembly building construction","0097034","陈胡星","无机所"]
[94,"3140103740","刘涛"," ",{"$f":"VLOOKUP(C97,[1]Sheet3!A:B,2,0)","v":65},3.8,17816859780,"材料1402","男","纳米氧化钛的光催化性能研究","On photocatalytic properties of nano-titanium dioxide ","0097034","陈胡星","无机所"]
[95,"3140102879","张威迪"," ",{"$f":"VLOOKUP(C98,[1]Sheet3!A:B,2,0)","v":64},3.82,15858442059,"材料1404","男","医用缝线表面药物负载涂层的制备与表征","Preparation and characterization of drug-loaded coatings on medical suture","0006255","程逵","无机所"]
[96,"3140102903","吴程伟","是",{"$f":"VLOOKUP(C99,[1]Sheet3!A:B,2,0)","v":28},4.15,17816872042,"材料1403","男","Si表面的脂质体固载及光场调控吸脱附研究","Immobilization of liposome on Si and its light responsive adsorption and desorption","0006255","程逵","无机所"]
[97,"3140104906","陈峰"," ",{"$f":"VLOOKUP(C100,[1]Sheet3!A:B,2,0)","v":99},3.47,17816858779,"材料1401","男","光响应ECM复合薄膜的制备与表征","Preparation and characterization of light responsive ECM composite films","0006255","程逵","无机所"]
[98,"3140105272","关玲玲","是",{"$f":"VLOOKUP(C101,[1]Sheet3!A:B,2,0)","v":10},4.3,17816859602,"材料1401","女","含六核稀土簇的金属－有机框架材料的设计合成及其发光性能研究","Preparation and Luminescent Property of Metal-Organic Frameworks based on hexanuclear lanthanide clusters","0006094","崔元靖","无机所"]
[99,"3140101597","陈凯峰","外推",{"$f":"VLOOKUP(C102,[1]Sheet3!A:B,2,0)","v":48},4.01,17816878262,"材料1403","男","  基于不同形状微突起压阻传感器的  COMSOL多物理场结构设计及优化","The design and optimization of ultra small size piezoresistive sensor","0093004","杜丕一","无机所"]
[100,"3140104477","刘苏宇"," ",{"$f":"VLOOKUP(C103,[1]Sheet3!A:B,2,0)","v":66},3.78,17816858802,"材料1402","男","纳米Ni-Ecoflex电磁屏蔽材料的制备及其吸波性能的研究","The preparation of Ni-Ecoflex flexible electromagnetic interference shielding materials and the study of magnetic wave absorbing property","0093004","杜丕一","无机所"]
[101,"3140105345","党月桐"," ",{"$f":"VLOOKUP(C104,[1]Sheet3!A:B,2,0)","v":29},4.13,17816862889,"材料1404","女","渗流型超弹导电复合材料的制备及其电学性能与机械性能的研究"," The preparation of Percolative hyperelastic conductive composite and the study of electrical and mechanical property","0093004","杜丕一","无机所"]
[102,"3140102864","张俊文"," ",{"$f":"VLOOKUP(C105,[1]Sheet3!A:B,2,0)","v":119},2.79,17816859295,"材料1401","男","大尺寸纤维增强气凝胶的制备及应用","Preparation and application of fibre reinforced aerogel with large size","0004492","郭兴忠","无机所"]
[103,"3140102900","王奇玄"," ",{"$f":"VLOOKUP(C106,[1]Sheet3!A:B,2,0)","v":79},3.64,17816878102,"材料1403","男","多孔过渡金属氧化物的制备及应用","Preparation and application of macroporous transition metal oxides","0004492","郭兴忠","无机所"]
[104,"3140104157","谢宇玺"," ",{"$f":"VLOOKUP(C107,[1]Sheet3!A:B,2,0)","v":55},3.89,13735862463,"材料1403","女","PCL/Gelatin/Au NR复合药物传输纤维的体外生物学评价","An in-vitro study of PCL/Gelatin/Au NR composite drug delivery platform","0010081","李翔","无机所"]
[105,"3140104776","陆子介","是",{"$f":"VLOOKUP(C108,[1]Sheet3!A:B,2,0)","v":43},4.03,17816877245,"材料1404","男","溶胶凝胶生物活性玻璃的合成制备与亲水性能探究","The synthesis of bioactive glasses with different hydrophily","0010081","李翔","无机所"]
[106,"3140103695","晏汝良"," ",{"$f":"VLOOKUP(C109,[1]Sheet3!A:B,2,0)","v":118},3.03,15116271562,"材料1403","男","上转换纳米晶及其温度探测","Upconversion nanocrystals for temperature sensing","0013173","刘小峰","无机所"]
[107,"3140103696","董泽熹"," ",{"$f":"VLOOKUP(C110,[1]Sheet3!A:B,2,0)","v":94},3.54,15386430597,"材料1404","男","激光照明用玻璃陶瓷","Glass ceramics for laser lighting","0013173","刘小峰","无机所"]
[108,"3140102907","林子祥"," ",{"$f":"VLOOKUP(C111,[1]Sheet3!A:B,2,0)","v":35},4.09,17816878953,"材料1401","男","结构驱动二氧化钒绝缘体-金属相变的第一性原理研究","First-principle study of structure induced insulater-metal phase transition of vo2","0006463","刘涌","无机所"]
[109,"3140105349","张艺翔","考研",{"$f":"VLOOKUP(C112,[1]Sheet3!A:B,2,0)","v":47},4.01,17816859422,"材料1403","男","面向电子玻璃应用的兼具防炫目、抗指纹的多功能涂层的溶胶凝胶制备","Sol-gel preparation of an anti-glared and anti-fingerprint coating for electric glass","0006463","刘涌","无机所"]
[110,"3140102897","王梦佳","是",{"$f":"VLOOKUP(C113,[1]Sheet3!A:B,2,0)","v":2},4.48,18105765082,"材料1401","女","生物纳米结构的自组装及其应用","Self-assembly and applications of biological nanostructures","0015029","毛传斌","无机所"]
[111,"3140104146","徐浩杰"," ",{"$f":"VLOOKUP(C114,[1]Sheet3!A:B,2,0)","v":32},4.11,17816858790,"材料1401","男","不同粒径磁性纳米颗粒的合成及其靶向多肽的筛选","Synthesis of magnetic nanoparticles with different diameters and identification of their targeting peptides","0015029","毛传斌","无机所"]
[112,"3140104859","曲思佳","外推",{"$f":"VLOOKUP(C115,[1]Sheet3!A:B,2,0)","v":18},4.24,17816861933,"材料1401","女","一种多肽功能化的软骨组织工程支架设计与制备","Design and preparation of peptide-functionalized scaffolds for cartilage regeneration","0015029","毛传斌","无机所"]
[113,"3140102911","张琳","是",{"$f":"VLOOKUP(C116,[1]Sheet3!A:B,2,0)","v":11},4.29,17816872119,"材料1403","女","铕、铽双稀土-有机框架材料的设计合成及其荧光检测应用","syntheses and luminescent sensing properties of Eu/Tb-mixed lanthanide metal-organic frameworks","0097069","钱国栋","无机所"]
[114,"3140104261","王永义"," ",{"$f":"VLOOKUP(C117,[1]Sheet3!A:B,2,0)","v":61},3.83,17816859807,"材料1403","男","硼酸盐玻璃中类分子态银团簇光谱学特性研究与模拟计算","Experimental and simulation on spectroscopic properties of molecule like silver clusters in borate glass","0007238","乔旭升","无机所"]
[115,"3140102869","陈嘉璐","是",{"$f":"VLOOKUP(C118,[1]Sheet3!A:B,2,0)","v":17},4.26,17816859553,"材料1402","女","PbTiO3/SrTiO3单晶异质结的可控生长与微结构表征","Study on growth control and microstructure characterization of PbTiO3/SrTiO3 heterostructures","0008755","任召辉","无机所"]
[116,"3140103821","陈淑萍"," ",{"$f":"VLOOKUP(C119,[1]Sheet3!A:B,2,0)","v":52},3.95,17816859552,"材料1402","女","分子调控的二氧化钛纳米片生长、微结构与光催化性能研究","Molecular-mediated growth, microstructure and photocatalytic performance of TiO2 nanosheet","0008755","任召辉","无机所"]
[117,"3140102857","张畅滕","考研",{"$f":"VLOOKUP(C120,[1]Sheet3!A:B,2,0)","v":114},3.13,17816859104,"材料1403","男","Bi2WO6光催化材料改性及性能研究","Modification and properties of Bi2WO6 photocatalytic materials","0008275","申乾宏","无机所"]
[118,"3140103700","蒋朋麟"," ",{"$f":"VLOOKUP(C121,[1]Sheet3!A:B,2,0)","v":107},3.38,17816859121,"材料1404","男","钠系水合玻璃快离子导体的制备与性能表征","Preparation And Performance Characterization of Sodium Hydrate Glass Fast Ionic Conduction","0092045","王智宇","无机所"]
[119,"3140102686","陈思议"," ",{"$f":"VLOOKUP(C122,[1]Sheet3!A:B,2,0)","v":44},4.03,17816877541,"材料1401","女","Zr4+掺杂M型钡铁氧体超薄宽频毫米波隐身材料的制备及吸波性能研究","The preparation of Zr4+ doped M-type barium ferrite and investigation of microwave absorption properties","0015161","王宗荣","无机所"]
[120,"3140100836","罗曼"," ",{"$f":"VLOOKUP(C123,[1]Sheet3!A:B,2,0)","v":73},3.72,17816872726,"材料1404","女","pH值对水热合成TiO2纳米颗粒相组成的影响","Effect of pH on the phase formation of the hydrothermally synthesized TiO2 nanoparticles","0005120","徐刚","无机所"]
[121,"3140102912","陈宇","考研",{"$f":"VLOOKUP(C124,[1]Sheet3!A:B,2,0)","v":56},3.89,17816859246,"材料1404","男","CdS纳米结构的水热合成及其光催化性能研究","Hydrothermal synthesis and photocatalytic properties of CdS nanostructures","0005120","徐刚","无机所"]
[122,"3130000706","石悦"," ",null,null,15867110398,"材料1302","男","羟基氧化钨纳米片的水热合成及表征","Hydrothermal synthesis and characterization of tungsten hydroxide nanosheets","0005120","徐刚","无机所"]
[123,"3140102893","黄凯越"," ",{"$f":"VLOOKUP(C126,[1]Sheet3!A:B,2,0)","v":110},3.21,18258672778,"材料1401","男","功函数可调的OLED透明导电薄膜材料的制备","Preparation of transparent conductive films with adjustable work function","0086192","杨辉","无机所"]
[124,"3140104905","李翘楚"," ",{"$f":"VLOOKUP(C127,[1]Sheet3!A:B,2,0)","v":74},3.72,17816858792,"材料1401","男","氧化物/PTFE-TrFE复合绝缘材料的制备及性能研究","Preparation and Properties of PTFE-TrFE/Oxide Composite Insulation Materials","0086192","杨辉","无机所"]
[125,"3140100837","曾薇"," ",{"$f":"VLOOKUP(C128,[1]Sheet3!A:B,2,0)","v":83},3.6,17816859554,"材料1404","女","金属有机框架材料在协同肿瘤光动力及光热治疗中的应用","Application of metal organic framework (MOFs) materials in photodynamic therapy and photothermal therapy for tumors","0005488","杨雨","无机所"]
[126,"3140101116","张春雷","考研",{"$f":"VLOOKUP(C129,[1]Sheet3!A:B,2,0)","v":71},3.73,17816859125,"材料1404","男","石墨烯/氧化锡/导电聚合物三元复合材料的制备及电化学性能研究","Preparation and electrochemical properties of Graphene/SnO2/conducting polymer ternary composites","0004433","张启龙","无机所"]
[127,"3140103570","曾安平"," ",{"$f":"VLOOKUP(C130,[1]Sheet3!A:B,2,0)","v":49},3.97,17816858965,"材料1403","男","多级结构WO3的制备及其光催化性能","Synthesis of hierarchical structure WO3 and its photocatalytic properties","0096002","赵高凌","无机所"]
[128,"3140104586","赵昕"," ",{"$f":"VLOOKUP(C131,[1]Sheet3!A:B,2,0)","v":80},3.63,17816890060,"材料1402","男","太阳能电池用准二维钙钛矿的制备与量子效应研究","Synthesis and quantum confinement effects of quasi-2D layered perovskite nanocrystals","0096002","赵高凌","无机所"]
[{"$nulls":9}," "]
[{"$nulls":9}," "]